bitfinex/quotes_SOLUSD_20240808
["timestamp","ask_amount","ask_price","bid_price","bid_amount"]
[1723118008840,7777.49223121,155.0,154.95,20.0]
[1723118009006,7777.49223121,155.0,154.92,67.029]
[1723118009007,7777.49223121,155.0,154.94,2.60112986]
[1723118009204,7777.49223121,155.0,154.92,20.0]
[1723118009726,31.5093,154.99,154.92,20.0]
[1723118009932,31.5093,154.99,154.94,20.0]
[1723118010228,31.5093,154.99,154.9,20.0]
[1723118010919,31.5093,154.99,154.89,2.57595156]
[1723118011233,46.61372868,154.98,154.86,20.0]
[1723118011539,46.61372868,154.98,154.84,27.16575497]
[1723118011540,0.17,154.97,154.84,20.0]
[1723118011826,1.61422699,154.96,154.84,20.0]
[1723118012031,1.95433775,154.95,154.85,4.64801749]
[1723118012208,30.3351,154.94,154.85,4.64801749]
[1723118012407,1.95449593,154.93,154.85,4.64801749]
[1723118012609,46.95449593,154.93,154.85,4.64801749]
[1723118012801,45.17,154.93,154.85,4.64801749]
[1723118013000,30.3351,154.94,154.85,4.64801749]
[1723118014330,30.3351,154.94,154.85,24.64801749]
[1723118014634,30.3351,154.94,154.86,4.64771735]
[1723118014925,30.3351,154.94,154.86,24.64771735]
[1723118015710,30.3351,154.94,154.87,65.34]
[1723118016028,30.3351,154.94,154.86,24.64771735]
[1723118016825,30.3351,154.94,154.87,20.0]
[1723118017211,30.3351,154.94,154.86,4.64771735]
[1723118018914,30.3351,154.94,154.86,5.93897457]
[1723118019228,30.3351,154.94,154.86,4.64771735]
[1723118019807,45.17,154.93,154.86,4.64771735]
[1723118020009,30.3351,154.94,154.86,4.64771735]
[1723118020406,30.3351,154.94,154.86,24.64771735]
[1723118020611,30.3351,154.94,154.88,20.0]
[1723118020838,30.3351,154.94,154.87,45.34]
[1723118021010,30.3351,154.94,154.86,24.64771735]
[1723118021211,30.3351,154.94,154.88,20.0]
[1723118021418,30.3351,154.94,154.87,65.0]
[1723118023131,30.3351,154.94,154.88,20.0]
[1723118024020,31.7671,154.99,154.9,20.0]
[1723118024217,31.7671,154.99,154.91,21.29076331]
[1723118024840,31.7671,154.99,154.92,20.0]
[1723118025042,31.7671,154.99,154.93,21.29066399]
[1723118025340,31.7671,154.99,154.89,20.0]
[1723118025512,1.6138004,154.98,154.86,7.16912488]
[1723118025718,1.6138004,154.98,154.86,4.64771735]
[1723118025924,0.17,154.97,154.86,4.64771735]
[1723118026140,1.61427443,154.96,154.86,4.64771735]
[1723118026342,0.34,154.95,154.86,4.64771735]
[1723118026644,0.17,154.95,154.86,4.64771735]
[1723118026836,0.17,154.96,154.86,4.64771735]
[1723118027039,0.17,154.97,154.86,4.64771735]
[1723118027341,0.34,154.97,154.86,4.64771735]
[1723118028915,30.3929,154.94,154.86,4.64771735]
[1723118029214,45.34,154.93,154.86,4.64771735]
[1723118030143,1.61441996,154.92,154.86,4.64771735]
[1723118030341,0.17,154.91,154.86,4.64771735]
[1723118030518,45.17,154.91,154.86,4.64771735]
[1723118030920,45.17,154.91,154.81,6.74269379]
[1723118030921,31.7946,154.89,154.81,6.74269379]
[1723118031215,31.7946,154.89,154.77,21.12360903]
[1723118031216,45.0,154.88,154.77,48.05]
[1723118031421,45.0,154.88,154.78,6.74609935]
[1723118031822,73.05,154.88,154.78,6.74609935]
[1723118032031,73.05,154.88,154.76,38.16423244]
[1723118032313,0.34,154.87,154.76,38.16423244]
[1723118032520,28.05,154.86,154.76,10.11423244]
[1723118032837,28.05,154.78,154.69,1.12401792]
[1723118033019,1.61586298,154.8,154.69,10.12343789]
[1723118033220,28.05,154.8,154.68,49.34277784]
[1723118033437,45.0,154.79,154.68,48.05]
[1723118033941,0.17,154.81,154.68,21.29259927]
[1723118034153,0.17,154.81,154.69,20.0]
[1723118034317,1.78579833,154.81,154.69,20.0]
[1723118034524,0.17,154.8,154.69,24.65282506]
[1723118035229,1.78579334,154.8,154.69,4.65282506]
[1723118035446,0.17,154.79,154.69,4.65282506]
[1723118036145,45.17,154.79,154.69,4.65282506]
[1723118036337,1.78604642,154.78,154.69,4.65282506]
[1723118036529,0.17,154.77,154.69,4.65282506]
[1723118037035,45.0,154.79,154.69,4.65282506]
[1723118037224,0.17,154.78,154.69,4.65282506]
[1723118037847,1.95601709,154.78,154.69,4.65282506]
[1723118039219,1.61601797,154.81,154.69,4.65282506]
[1723118039431,1.6157278,154.8,154.69,4.65282506]
[1723118039845,20.0,154.81,154.69,4.65282506]
[1723118040038,1.61591415,154.8,154.69,4.65282506]
[1723118040428,20.0,154.82,154.69,4.65282506]
[1723118040748,46.95572094,154.81,154.69,4.65282506]
[1723118040947,46.95572094,154.81,154.69,24.65282506]
[1723118041250,46.95572094,154.81,154.69,4.65282506]
[1723118041649,1.6158688,154.8,154.69,4.65282506]
[1723118041943,0.34,154.79,154.69,4.65282506]
[1723118042142,1.61605721,154.78,154.69,4.65282506]
[1723118042353,1.61598065,154.78,154.69,4.65282506]
[1723118042738,0.34,154.77,154.69,4.65282506]
[1723118043035,1.61610072,154.78,154.66,20.0]
[1723118043240,45.0,154.79,154.66,21.29276432]
[1723118043464,0.17,154.77,154.66,21.29276432]
[1723118043640,43.3762,154.77,154.66,20.0]
[1723118043837,45.0,154.76,154.67,1.29286446]
[1723118044147,46.61605598,154.76,154.65,10.46567269]
[1723118044455,46.61605598,154.76,154.56,12.6334]
[1723118044456,50.7878,154.74,154.56,12.6334]
[1723118044744,20.0,154.73,154.61,30.12793051]
[1723118044951,0.17,154.72,154.61,30.12793051]
[1723118045153,45.17,154.73,154.63,20.0]
[1723118045342,45.0,154.73,154.64,1.29313432]
[1723118045653,45.0,154.73,154.63,20.0]
[1723118046043,45.0,154.73,154.61,10.12793051]
[1723118046345,1.78647189,154.72,154.61,10.12793051]
[1723118046553,0.17,154.71,154.59,4.65583485]
[1723118046851,1.61701445,154.7,154.56,14.7889332]
[1723118047048,0.34,154.69,154.56,14.7889332]
[1723118047251,43.8755,154.67,154.56,14.7889332]
[1723118047562,1.78713458,154.66,154.56,4.65673854]
[1723118047732,46.95713458,154.66,154.56,4.65673854]
[1723118047938,45.34,154.66,154.56,4.65673854]
[1723118048245,46.95719015,154.66,154.56,4.65673854]
[1723118048551,46.95719015,154.66,154.53,10.95793531]
[1723118049132,46.95719015,154.66,154.53,0.8234764]
[1723118049333,1.61764173,154.65,154.53,0.8234764]
[1723118049549,0.34,154.64,154.53,0.8234764]
[1723118049764,1.61763965,154.63,154.53,0.8234764]
[1723118049935,47.97774985,154.62,154.53,0.8234764]
[1723118050131,47.80774985,154.62,154.53,0.8234764]
[1723118050330,107.758,154.61,154.53,0.8234764]
[1723118050555,1.78824925,154.6,154.53,0.8234764]
[1723118050755,8.25654925,154.6,154.44,34.79857108]
[1723118050984,43.4521,154.58,154.44,24.66035683]
[1723118051135,45.34,154.57,154.44,24.66035683]
[1723118051335,1.61831335,154.56,154.44,24.66035683]
[1723118051559,0.17,154.55,154.44,4.66035683]
[1723118051748,1.61867686,154.54,154.42,20.0]
[1723118052053,1.61867686,154.54,154.4,10.14294583]
[1723118052054,0.17,154.53,154.4,10.14294583]
[1723118052256,1.61887987,154.52,154.4,10.14294583]
[1723118052462,0.34,154.51,154.4,10.14294583]
[1723118052761,0.17,154.51,154.41,20.0]
[1723118052955,0.17,154.52,154.41,20.0]
[1723118053335,45.3143,154.51,154.39,20.0]
[1723118053534,45.3143,154.51,154.39,30.1449381]
[1723118053758,45.34,154.5,154.39,30.1449381]
[1723118054135,0.17,154.5,154.39,31.4396563]
[1723118054340,45.3143,154.51,154.39,31.4396563]
[1723118054761,46.95883699,154.5,154.39,10.1449381]
[1723118054952,46.95883699,154.5,154.38,12.22892601]
[1723118054953,46.95883699,154.5,154.38,5.48564449]
[1723118055350,1.61916227,154.49,154.38,5.48564449]
[1723118055552,0.34,154.48,154.38,5.48564449]
[1723118056073,1.61936274,154.47,154.38,5.48564449]
[1723118056251,0.34,154.46,154.38,0.8234764]
[1723118056565,1.61958157,154.45,154.38,0.8234764]
[1723118056875,42.7418,154.43,154.31,11.40915634]
[1723118057186,1.62002354,154.42,154.27,20.0]
[1723118057471,0.17,154.41,154.28,6.74600909]
[1723118057650,1.62007868,154.4,154.28,6.74600909]
[1723118057851,0.34,154.39,154.28,6.74600909]
[1723118058047,0.17,154.39,154.29,20.0]
[1723118058252,45.0,154.42,154.31,20.0]
[1723118058454,0.17,154.41,154.29,20.0]
[1723118058767,0.17,154.41,154.28,6.74600909]
[1723118058768,1.95985341,154.41,154.28,6.74600909]
[1723118058970,21.95985341,154.41,154.25,24.6660973]
[1723118059168,45.0,154.4,154.25,24.6660973]
[1723118059371,0.34,154.39,154.27,20.0]
[1723118059673,1.96016058,154.39,154.27,20.0]
[1723118060061,1.96016058,154.39,154.25,31.41390907]
[1723118060366,1.62031012,154.38,154.25,31.41390907]
[1723118060573,45.0,154.4,154.29,20.0]
[1723118060772,42.7418,154.43,154.29,20.0]
[1723118060773,42.7418,154.43,154.31,20.0]
[1723118060982,1.61974746,154.42,154.32,20.0]
[1723118061269,42.7418,154.43,154.32,20.0]
[1723118061770,42.7418,154.43,154.33,65.0]
[1723118062067,42.7418,154.43,154.34,0.17]
[1723118062271,1.61946938,154.42,154.34,0.17]
[1723118062573,1.61946938,154.42,154.32,20.0]
[1723118062969,1.61946938,154.42,154.31,20.0]
[1723118063276,42.7418,154.43,154.35,20.0]
[1723118063457,42.7418,154.43,154.36,0.17]
[1723118063658,1.61925135,154.42,154.34,0.17]
[1723118063867,1.61925135,154.42,154.34,65.17]
[1723118064073,42.7418,154.43,154.34,65.34]
[1723118064660,42.7418,154.43,154.36,20.0]
[1723118064882,42.7418,154.43,154.38,20.0]
[1723118065174,260.7,154.49,154.38,20.0]
[1723118065175,13.0745,154.48,154.38,20.0]
[1723118065377,13.0745,154.48,154.4,20.0]
[1723118065674,13.0745,154.48,154.39,65.34]
[1723118065675,13.0745,154.48,154.39,20.0]
[1723118065856,13.0745,154.48,154.37,20.0]
[1723118066052,13.0745,154.48,154.39,20.0]
[1723118067063,13.0745,154.48,154.41,20.0]
[1723118067281,13.0745,154.48,154.4,0.17]
[1723118067282,31.7944,154.49,154.43,20.0]
[1723118067456,31.7944,154.49,154.42,0.17]
[1723118067776,31.7944,154.49,154.43,0.17]
[1723118068357,31.7944,154.49,154.41,20.0]
[1723118069785,31.7944,154.49,154.43,20.0]
[1723118069983,31.7944,154.49,154.42,45.17]
[1723118070190,31.7944,154.49,154.41,20.0]
[1723118070579,31.7944,154.49,154.4,0.17]
[1723118070884,31.7944,154.49,154.4,20.0]
[1723118071081,31.7944,154.49,154.41,0.34]
[1723118071483,31.7944,154.49,154.42,20.0]
[1723118071860,31.7944,154.49,154.41,0.34]
[1723118072064,1.61875068,154.48,154.4,0.17]
[1723118072371,31.7944,154.49,154.42,20.0]
[1723118072979,31.7944,154.49,154.4,20.34]
[1723118074269,31.7944,154.49,154.4,20.0]
[1723118074689,31.7944,154.49,154.39,20.0]
[1723118074892,1.61896782,154.48,154.38,20.0]
[1723118075071,31.7944,154.49,154.38,20.0]
[1723118075266,31.7944,154.49,154.38,40.0]
[1723118075471,31.7944,154.49,154.4,20.0]
[1723118076988,31.7944,154.49,154.44,20.0]
[1723118077189,12.9424,154.52,154.45,1.29477426]
[1723118077389,12.9424,154.52,154.45,20.0]
[1723118077693,12.9424,154.52,154.43,20.17]
[1723118077998,12.9424,154.52,154.44,0.17]
[1723118078495,12.9424,154.52,154.4,20.0]
[1723118078683,12.9424,154.52,154.41,65.34]
[1723118079190,45.0,154.51,154.41,0.34]
[1723118079378,12.9424,154.52,154.44,20.0]
[1723118079788,12.9424,154.52,154.41,65.34]
[1723118079977,12.9424,154.52,154.41,20.34]
[1723118081692,12.9424,154.52,154.41,0.34]
[1723118082594,14.56117277,154.52,154.41,0.34]
[1723118082784,12.9424,154.52,154.41,0.34]
[1723118083095,1.61877338,154.51,154.41,0.34]
[1723118083869,1.61877338,154.51,154.41,20.34]
[1723118084201,14.56117284,154.52,154.41,20.34]
[1723118086275,12.9424,154.52,154.41,20.34]
[1723118086476,12.9424,154.52,154.46,20.0]
[1723118087400,12.9424,154.52,154.44,20.0]
[1723118087913,30.6661,154.54,154.47,20.0]
[1723118088073,12.4233,154.56,154.49,20.0]
[1723118088275,1.61814082,154.55,154.45,32.2918]
[1723118088479,1.61814082,154.55,154.46,65.17]
[1723118088696,12.4233,154.56,154.47,20.17]
[1723118089001,12.4233,154.56,154.49,20.0]
[1723118089201,1.61787017,154.55,154.48,0.17]
[1723118089381,1.61787017,154.55,154.48,45.17]
[1723118090206,12.4233,154.56,154.48,45.17]
[1723118090382,33.2725,154.59,154.53,20.0]
[1723118095999,33.2725,154.59,154.49,58.63012298]
[1723118096000,33.2725,154.59,154.51,20.0]
[1723118096197,1.61755841,154.58,154.5,0.17]
[1723118096396,1.61777935,154.57,154.49,20.0]
[1723118096621,33.2725,154.59,154.49,20.0]
[1723118097427,33.2725,154.59,154.51,20.0]
[1723118099523,33.2725,154.59,154.52,0.17]
[1723118099733,33.2725,154.59,154.51,20.0]
[1723118099944,1.61769121,154.58,154.49,20.0]
[1723118100313,33.2725,154.59,154.51,20.0]
[1723118101233,1.61777399,154.58,154.5,45.34]
[1723118101441,1.61777399,154.58,154.49,45.0]
[1723118101621,1.61777399,154.58,154.5,20.0]
[1723118101942,33.2725,154.59,154.5,20.0]
[1723118102242,33.2725,154.59,154.51,20.34]
[1723118102426,33.2725,154.59,154.51,65.34]
[1723118102732,34.89018117,154.59,154.51,65.34]
[1723118102950,33.2725,154.59,154.51,65.34]
[1723118103151,31.3329,154.63,154.55,20.0]
[1723118103358,31.3329,154.63,154.59,20.0]
[1723118103651,12.8854,154.64,154.59,20.0]
[1723118103942,12.8854,154.64,154.59,28.13]
[1723118104110,1.6169976,154.63,154.59,28.13]
[1723118105018,1.61699749,154.63,154.57,28.13]
[1723118105342,1.61699749,154.63,154.53,48.13]
[1723118105530,1.61699749,154.63,154.51,48.13]
[1723118105737,1.61699749,154.63,154.53,20.0]
[1723118105929,12.8854,154.64,154.53,20.0]
[1723118106112,1.61738291,154.63,154.53,20.0]
[1723118106320,12.8854,154.64,154.55,20.0]
[1723118106531,12.8854,154.64,154.57,20.0]
[1723118107423,32.9675,154.67,154.59,20.0]
[1723118108042,34.58436281,154.67,154.55,20.0]
[1723118108220,34.58436281,154.67,154.56,20.0]
[1723118108425,32.9675,154.67,154.56,20.0]
[1723118109125,34.58475733,154.67,154.56,20.0]
[1723118109845,34.58475733,154.67,154.55,20.17]
[1723118110149,34.58475733,154.67,154.56,45.17]
[1723118111454,32.9675,154.67,154.58,20.0]
[1723118111626,34.58434629,154.67,154.59,45.17]
[1723118111954,32.9675,154.67,154.56,65.17]
[1723118112251,32.9675,154.67,154.57,20.17]
[1723118112417,34.58448325,154.67,154.57,20.0]
[1723118112622,34.58448325,154.67,154.56,65.17]
[1723118112819,0.17,154.66,154.51,56.19]
[1723118113052,1.61741949,154.65,154.51,56.19]
[1723118113220,1.61741351,154.64,154.55,20.0]
[1723118113745,1.61741351,154.64,154.53,20.0]
[1723118114254,1.61741351,154.64,154.54,20.17]
[1723118114426,1.61736933,154.65,154.54,20.17]
[1723118115558,1.61736933,154.65,154.55,20.0]
[1723118116048,45.17,154.66,154.55,20.0]
[1723118116238,1.61736357,154.65,154.55,20.0]
[1723118116850,34.58485766,154.67,154.56,45.0]
[1723118117155,34.58485766,154.67,154.55,20.0]
[1723118117351,34.58485766,154.67,154.56,45.34]
[1723118117739,34.58485766,154.67,154.57,20.0]
[1723118117931,32.9675,154.67,154.59,20.0]
[1723118118737,32.9675,154.67,154.61,20.0]
[1723118119051,32.9675,154.67,154.62,45.34]
[1723118119434,32.9675,154.67,154.63,20.0]
[1723118120127,12.5003,154.68,154.63,20.0]
[1723118120327,32.5662,154.71,154.65,20.0]
[1723118120522,32.5662,154.71,154.66,20.17]
[1723118120746,32.5662,154.71,154.66,65.17]
[1723118121546,32.5662,154.71,154.66,20.0]
[1723118122074,1.61612727,154.7,154.66,20.0]
[1723118122348,1.61612727,154.7,154.64,20.17]
[1723118123129,32.5662,154.71,154.64,20.0]
[1723118123345,1.61668696,154.7,154.59,20.0]
[1723118123547,34.18298661,154.71,154.61,20.0]
[1723118124633,32.5662,154.71,154.61,20.0]
[1723118125037,34.18271174,154.71,154.62,45.34]
[1723118125244,32.5662,154.71,154.65,20.0]
[1723118125446,32.5662,154.71,154.63,20.0]
[1723118125935,32.5662,154.71,154.64,45.0]
[1723118126136,32.5662,154.71,154.65,20.0]
[1723118127141,34.18251908,154.71,154.63,20.0]
[1723118127338,32.5662,154.71,154.63,20.0]
[1723118127958,34.18258931,154.71,154.63,20.0]
[1723118128749,1.61638946,154.7,154.63,20.0]
[1723118129255,46.61658863,154.7,154.58,22.08578116]
[1723118129563,0.34,154.69,154.58,2.08578116]
[1723118129739,13.1796,154.67,154.58,2.08578116]
[1723118129943,1.61719511,154.66,154.58,2.08578116]
[1723118130839,1.61719511,154.66,154.58,22.08578116]
[1723118131040,1.61719511,154.66,154.58,2.08578116]
[1723118131452,13.1796,154.67,154.59,0.17]
[1723118131642,13.1796,154.67,154.6,20.0]
[1723118132025,13.1796,154.67,154.59,0.34]
[1723118132238,13.1796,154.67,154.59,45.34]
[1723118132450,14.79639157,154.67,154.6,40.0]
[1723118132657,13.1796,154.67,154.6,40.0]
[1723118132856,13.1796,154.67,154.61,0.17]
[1723118133029,13.1796,154.67,154.62,20.0]
[1723118133536,13.1796,154.67,154.61,0.34]
[1723118133749,14.79608164,154.67,154.61,45.17]
[1723118133954,14.79608164,154.67,154.6,20.0]
[1723118134256,14.79608164,154.67,154.58,2.08578116]
[1723118134555,13.1796,154.67,154.61,20.0]
[1723118135136,13.1796,154.67,154.58,22.08578116]
[1723118135338,1.61685845,154.66,154.58,2.08578116]
[1723118135743,13.1796,154.67,154.58,22.08578116]
[1723118135939,13.1796,154.67,154.6,20.0]
[1723118136338,13.1796,154.67,154.59,0.17]
[1723118136538,13.1796,154.67,154.59,45.17]
[1723118137142,13.1796,154.67,154.58,22.25578116]
[1723118137341,13.1796,154.67,154.59,65.17]
[1723118137543,13.1796,154.67,154.6,20.0]
[1723118137750,14.79627193,154.67,154.59,65.34]
[1723118138633,13.1796,154.67,154.59,65.34]
[1723118138837,13.1796,154.67,154.6,20.17]
[1723118139058,13.1796,154.67,154.62,20.0]
[1723118139958,13.1796,154.67,154.63,0.17]
[1723118140139,13.1796,154.67,154.63,45.17]
[1723118140338,13.1796,154.67,154.6,20.0]
[1723118140552,13.1796,154.67,154.61,45.17]
[1723118140766,14.79629736,154.67,154.62,20.0]
[1723118140977,14.79629736,154.67,154.58,2.08578116]
[1723118142162,13.1796,154.67,154.58,22.08578116]
[1723118142340,13.1796,154.67,154.6,20.0]
[1723118142540,13.1796,154.67,154.61,65.17]
[1723118143263,13.1796,154.67,154.62,20.17]
[1723118143871,32.9533,154.68,154.62,20.17]
[1723118144168,32.9533,154.68,154.63,20.17]
[1723118146354,32.9533,154.68,154.65,20.0]
[1723118146545,32.9533,154.68,154.64,0.17]
[1723118146959,32.9533,154.68,154.63,20.17]
[1723118147360,32.9533,154.68,154.65,20.0]
[1723118148675,43.3117,154.75,154.65,20.0]
[1723118148845,43.3117,154.75,154.68,20.0]
[1723118149055,43.3117,154.75,154.7,20.0]
[1723118149865,43.3117,154.75,154.7,48.09]
[1723118150369,0.8234764,154.76,154.72,48.09]
[1723118150665,0.8234764,154.76,154.73,20.0]
[1723118151248,0.8234764,154.76,154.71,20.0]
[1723118151665,0.8234764,154.76,154.69,20.0]
[1723118151847,0.8234764,154.76,154.65,22.56679855]
[1723118152048,0.8234764,154.76,154.66,45.17]
[1723118152559,1.61592561,154.75,154.65,22.56679855]
[1723118152871,12.3461,154.73,154.64,1.98999905]
[1723118153082,1.6164887,154.72,154.64,1.98999905]
[1723118153579,12.3461,154.73,154.64,1.98999905]
[1723118154953,1.61634447,154.72,154.64,21.98999905]
[1723118155152,1.61634447,154.72,154.65,20.0]
[1723118155978,12.3461,154.73,154.65,20.0]
[1723118157068,12.3461,154.73,154.64,1.98999905]
[1723118158275,13.96239068,154.73,154.64,1.98999905]
[1723118158590,13.96239068,154.73,154.64,21.98999905]
[1723118158749,13.96239068,154.73,154.65,20.0]
[1723118159048,13.96239068,154.73,154.64,1.98999905]
[1723118159479,0.34,154.72,154.64,1.98999905]
[1723118159657,1.6166123,154.71,154.64,1.98999905]
[1723118159857,1.61662761,154.7,154.64,1.98999905]
[1723118160972,12.7936,154.68,154.64,1.98999905]
[1723118161177,31.8461,154.66,154.58,6.74434881]
[1723118161381,1.61723479,154.65,154.56,20.0]
[1723118161591,1.61723479,154.65,154.56,26.74600543]
[1723118161759,31.8461,154.66,154.56,26.74600543]
[1723118161760,31.8461,154.66,154.58,20.0]
[1723118162274,31.8461,154.66,154.56,26.74600543]
[1723118162472,31.8461,154.66,154.57,45.34]
[1723118162786,31.8461,154.66,154.58,20.0]
[1723118163170,31.8461,154.66,154.59,1.85779865]
[1723118163376,31.8461,154.66,154.59,46.85779865]
[1723118163570,31.8461,154.66,154.6,20.0]
[1723118164167,31.8461,154.66,154.59,1.85779865]
[1723118164168,1.61711758,154.65,154.59,1.85779865]
[1723118164369,12.2686,154.63,154.59,1.85779865]
[1723118164574,12.2686,154.63,154.53,1.85829773]
[1723118164575,79.64942585,154.62,154.53,1.85829773]
[1723118164777,0.17,154.61,154.53,1.85829773]
[1723118164987,44.4365,154.59,154.53,1.85829773]
[1723118165193,44.4365,154.59,154.41,45.1951]
[1723118165194,46.78819298,154.58,154.48,6.75068036]
[1723118165498,46.78819298,154.58,154.47,1.85901953]
[1723118165499,46.05491186,154.57,154.47,1.85901953]
[1723118165686,45.17,154.56,154.47,1.85901953]
[1723118165982,0.17,154.55,154.47,1.85901953]
[1723118166184,1.78843006,154.55,154.47,1.85901953]
[1723118166760,13.0931,154.52,154.47,1.85901953]
[1723118168992,1.61818694,154.51,154.47,1.85901953]
[1723118169268,13.0931,154.52,154.47,1.85901953]
[1723118172464,14.7116732,154.52,154.47,1.85901953]
[1723118172969,1.61860407,154.51,154.47,1.85901953]
[1723118173176,13.0931,154.52,154.47,1.85901953]
[1723118173798,13.0931,154.52,154.41,41.8597419]
[1723118174395,1.78851787,154.51,154.42,20.0]
[1723118174572,1.78851787,154.51,154.41,21.8597419]
[1723118174982,13.0931,154.52,154.41,21.8597419]
[1723118175177,13.0931,154.52,154.43,20.0]
[1723118175385,13.0931,154.52,154.41,21.8597419]
[1723118175386,13.0931,154.52,154.42,0.17]
[1723118175801,1.61846641,154.51,154.41,21.8597419]
[1723118176104,13.0931,154.52,154.41,21.8597419]
[1723118176408,45.34,154.51,154.41,21.8597419]
[1723118176575,1.61875959,154.51,154.41,21.8597419]
[1723118177108,1.61875959,154.51,154.41,1.8597419]
[1723118177277,32.1433,154.49,154.41,1.8597419]
[1723118177477,46.61909176,154.48,154.41,1.8597419]
[1723118178288,1.61909176,154.48,154.41,1.8597419]
[1723118178492,1.61903604,154.47,154.41,1.8597419]
[1723118179180,46.61910872,154.48,154.41,1.8597419]
[1723118179496,32.1433,154.49,154.41,1.8597419]
[1723118179804,14.51613727,154.48,154.41,1.8597419]
[1723118181109,45.34,154.47,154.41,1.8597419]
[1723118181274,12.8971,154.48,154.41,1.8597419]
[1723118182519,1.61883601,154.47,154.41,1.8597419]
[1723118182810,12.8971,154.48,154.41,1.8597419]
[1723118183613,12.8971,154.48,154.41,21.8597419]
[1723118183901,1.61870098,154.47,154.41,1.8597419]
[1723118185201,1.61870098,154.47,154.37,20.0]
[1723118185715,12.8971,154.48,154.37,48.21]
[1723118185894,12.8971,154.48,154.4,20.0]
[1723118186402,14.5159776,154.48,154.39,28.21]
[1723118186784,14.5159776,154.48,154.38,45.17]
[1723118187000,14.5159776,154.48,154.39,20.0]
[1723118187195,14.5159776,154.48,154.37,48.21]
[1723118187598,12.8971,154.48,154.38,65.34]
[1723118187816,14.51604237,154.48,154.39,20.0]
[1723118188105,12.8971,154.48,154.39,20.0]
[1723118188488,14.51606046,154.48,154.39,20.0]
[1723118188881,12.8971,154.48,154.39,20.0]
[1723118189687,12.8971,154.48,154.4,45.34]
[1723118194187,12.8971,154.48,154.41,68.21]
[1723118194587,32.1433,154.49,154.43,48.21]
[1723118194816,32.1433,154.49,154.43,28.21]
[1723118195418,1.61851735,154.48,154.37,48.21]
[1723118195591,61.97233657,154.49,154.37,48.21]
[1723118195905,45.17,154.48,154.37,48.21]
[1723118196117,12.0555,154.47,154.37,48.21]
[1723118196702,13.67446892,154.47,154.38,20.17]
[1723118196906,13.67446892,154.47,154.38,20.0]
[1723118197125,12.0555,154.47,154.38,20.0]
[1723118198304,12.0555,154.47,154.39,93.38]
[1723118198495,32.1433,154.49,154.42,20.0]
[1723118198817,32.1433,154.49,154.43,20.0]
[1723118199116,32.1433,154.49,154.43,48.21]
[1723118200114,32.1433,154.49,154.43,20.0]
[1723118200293,32.1433,154.49,154.42,21.85962147]
[1723118200495,32.1433,154.49,154.43,20.17]
[1723118200802,32.1433,154.49,154.43,0.17]
[1723118201319,32.1433,154.49,154.43,65.34]
[1723118201697,32.1433,154.49,154.44,20.0]
[1723118202100,33.76182603,154.49,154.42,1.85962147]
[1723118202400,1.61872522,154.48,154.42,1.85962147]
[1723118202615,32.1433,154.49,154.42,1.85962147]
[1723118202809,32.1433,154.49,154.39,28.21]
[1723118203016,32.1433,154.49,154.39,48.21]
[1723118203317,32.1433,154.49,154.39,28.21]
[1723118203628,1.61903382,154.48,154.37,54.96083297]
[1723118203809,1.61903382,154.48,154.4,20.0]
[1723118204012,1.61903382,154.48,154.38,20.0]
[1723118204322,33.76231901,154.49,154.37,54.96083297]
[1723118204715,12.2453,154.48,154.37,6.75083297]
[1723118204935,0.17,154.47,154.35,48.21]
[1723118205096,30.94,154.45,154.35,28.21]